Workbook

Sheet 2018
A1: AGIRIA - Expediente | B1: NORI - Adjudicatario | C1: IZF/NAN - CIF/DNI | D1: ZENBATEKOA BEZa barik - Importe sin IVA | E1: ZENBATEKOA BEZ barne - Importe con IVA | F1: ZER - Concepto | G1: NOIZ - Fecha Dto. | H1: AMAIERA DATA - Fecha finalización
A2: 486 | B2: A Tiempo Servicios y Prvención | C2: B95480877 | D2: 2390 | E2: =D2*1.21 -> 2891.9 | F2: Servicion de mantenimiento y Nuevas altas en el servicio de prevencion de incendios | G2: 2018-07-23
A3: 288 | B3: ABRA Seguridad | C3: B95444733 | D3: 14506.79 | E3: =D3*1.21 -> 17553.2159 | F3: Suministro cuadros umore azoka | G3: 2018-05-24
A4: ADO3 | B4: ABRA SEGURIDAD, S.L. | C4: B95444733 | D4: =E4/1.21 -> 67.50413223 | E4: 81.68 | F4: IMPORTE ASIST TECNICA EN IKASTOLA ALTZAGA.-FRA. 808100791 PROPUESTA PAGOS Nº39/18
A5: ADO3 | B5: ABRA SEGURIDAD, S.L. | C5: B95444733 | D5: =E5/1.21 -> 216.2892562 | E5: 261.71 | F5: IMPORTE CONEXION A LA CENTRAL RECEPTORA DE ALARMAS Y ASISTECTECNCIA. CUOTA ANUAL.-FRA. 808100589 PP Nº29/18
A6: ADO3 | B6: ABRA SEGURIDAD, S.L. | C6: B95444733 | D6: 224.2727273 | E6: 271.37 | F6: IMPORTE CUOTA ANUAL CONEXION A LA CENTRAL RECEPTORA DE ALARMAS Y ASISTENCIA TECNICA OT. -FRA. 808100722 PP Nº 34/18
A7: ADO3 | B7: ABRA SEGURIDAD, S.L. | C7: B95444733 | D7: 279.1735537 | E7: 337.8 | F7: IMPORTE CUOTA ANUAL CONEXION A LA CENTRAL RECEPTORA DE ALARMAS AS TECNICA LOCAL S.ARANA 67 FRA. 808100588 PP Nº29/18/
A8: 154 | B8: ACIDEKA SL | C8: A48093926 | D8: 10321.68 | E8: =D8*1.21 -> 12489.2328 | F8: Suministro a tramitar a través de compras | G8: 2018-04-19 | H8: 2018-12-31
A9: 340 | B9: Acropost-Servicios postales | C9: A95265195 | D9: 325 | E9: =D9*1.21 -> 393.25 | F9: Envíos a domicilio a los/as jóvenes que cumplen las condiciones para participar en el programa Udaleku irekiak. | G9: 2018-06-05
A10: 587 | B10: ADUR Ekintza kulturalak, S.L.L | C10: B95677746 | D10: 1652.89 | E10: =D10*1.21 -> 1999.9969 | F10: Exhibición de deporte rural fiestas de Txopoeta 2018 | G10: 2018-09-18
A11: 468 | B11: AFAR PAPELERIA | C11: 72018228F | D11: 292.5 | E11: =D11*1.21 -> 353.925 | F11: Mochilas " OPORRAK BAKEAN" | G11: 2018-07-03
A12: ADO3 | B12: AGLOMERADOS DOS R,S.L. | C12: B53038055 | D12: =E12/1.21 -> 913.5041322 | E12: 1105.34 | F12: IMPORTE BOTES AGLOMERADO VIAS Y OBRAS F.656 PROPUESTA PAGOS Nº32/18
A13: ADO3 | B13: AGROJARDIN ASTIKENE S.L. | C13: B95583340 | D13: =E13/1.21 -> 213.5702479 | E13: 258.42 | F13: SUMINISTRO MATERIAL JARDINERIA. -FRA. 18/02375 PROPUESTA PAGOS Nº34/18
A14: ADO3 | B14: AGROJARDIN ASTIKENE S.L. | C14: B95583340 | D14: 481.8512397 | E14: 583.04 | F14: SUMINISTRO MATERIAL JARDINERIA. -FRA. 18/02739 PROPUESTA PAGOS Nº37/18
A15: ADO3 | B15: AGROJARDIN ASTIKENE S.L. | C15: B95583340 | D15: 915.2644628 | E15: 1107.47 | F15: NYLON 2.7MM, CORREA, CINTURON DE PORTE, CUBIERTA RUEDA, SACORECOGEDOR HONDA, AURICULARES...PROPUESTA PAGOS Nº28/18
A16: 575 | B16: AGROJARDIN ASTIKENE SL | C16: B95583340 | D16: 1167.28 | E16: =D16*1.21 -> 1412.4088 | F16: Factura Reparación 18/02740 | G16: 2018-09-07
A17: 282 | B17: AGROJARDIN ASTIKENE SL | C17: B95583340 | D17: 1882.22 | E17: 2277.4862 | F17: Factura 18/01061 Reparación | G17: 2018-05-22
A18: 471 | B18: AGROJARDIN ASTIKENE SL | C18: B95583340 | D18: 2022.92 | E18: 2447.7332 | F18: Factura 18/01939 Reparación | G18: 2018-07-11
A19: 522 | B19: AGROJARDIN ASTIKENE SL | C19: B95583340 | D19: 2873.19 | E19: 3476.5599 | F19: Factura 18/02376 Reparación | G19: 2018-08-14
A20: 435 | B20: AGROJARDIN ASTIKENE SL | C20: B95583340 | D20: 3394.6 | E20: 4107.466 | F20: Factura 18/01517 Reparación | G20: 2018-06-19
A21: 159 | B21: AGROJARDIN ASTIKENE SL | C21: B95583340 | D21: 5329.03 | E21: 6448.1263 | F21: Suministro a tramitar a través de compras | G21: 2018-04-19 | H21: 2018-12-31
A22: 43 | B22: Agrojardín Astikene, S.L. | C22: B95583340 | D22: 3800 | E22: 4598 | F22: Suministro maquinaria cortacesped Jardineria | G22: 2018-03-22 | H22: 2018-03-25
A23: 37 | B23: áKbar & laster profesionales SL | C23: B95744470 | D23: 3088.64 | E23: 3737.2544 | F23: Reparaciones varias en vestuarios Palac. Mendibile | G23: 2018-03-22 | H23: 2018-01-05
A24: 8 | B24: Aken S.Coop. Pequeña | C24: F95820593 | D24: 1700 | E24: 1700 | F24: Acción Formativa | G24: 2013-03-15 | H24: 2018-03-15
A25: 475 | B25: Aken S.Coop. Pequeña | C25: F95820593 | D25: 1700 | E25: 1700 | F25: Acción Formativa | G25: 2018-07-09
A26: 175 | B26: Akropost - Servicios Postales | C26: A95265195 | D26: 53.5 | E26: =D26*1.21 -> 64.735 | F26: Envíos cartelería y dípticos | G26: 2018-04-17
A27: 614 | B27: Akropost - Servicios postales | C27: A95265195 | D27: 53.5 | E27: =D27*1.21 -> 64.735 | F27: Envíos dípticos | G27: 2018-09-21
A28: 345 | B28: Akropost - Servicios postales | C28: A95265195 | D28: 55 | E28: =D28*1.21 -> 66.55 | F28: Envíos cartelería | G28: 2018-06-07
A29: 283 | B29: AKROPost - Servicios Postales | C29: A95265195 | D29: 8265 | E29: =D29*1.21 -> 10000.65 | F29: Servicio recogida y entrega correspondencia Ayto-areas-correos | G29: 2018-05-22
A30: ADO3 | B30: AKROPOST SERVICIOS POSTALES | C30: A95265195 | D30: =E30/1.21 -> 32.80165289 | E30: 39.69 | F30: IMPORTE COLOCACION DE BANDOS SOBRE LEVANTAMIENTO DE RESTOS DE NICHOS EN ALQUILER.-FRA. 180505 PP Nº 28/18
A31: ADO3 | B31: AKROPOST SERVICIOS POSTALES | C31: A95265195 | D31: =E31/1.21 -> 58.44628099 | E31: 70.72 | F31: IMPORTE SERV MENSAJERIA AGOSTO. -FRA. 180596 PROPUESTA PAGOS Nº37/18
A32: ADO3 | B32: AKROPOST SERVICIOS POSTALES | C32: A95265195 | D32: 63.75206612 | E32: 77.14 | F32: IMPORTE DISTRIBUCION DE PUBLIENVIOS EMAN GILTZA.-FRA. 180552PROPUESTA PAGOS Nº33/18
A33: ADO3 | B33: AKROPOST SERVICIOS POSTALES | C33: A95265195 | D33: 69.71900826 | E33: 84.36 | F33: IMPORTE SERV. RECOGIDA CORRESPONDENCIA AULA CULTURA. -FRA.180406 PROPUESTA PAGOS Nº30/18
A34: ADO3 | B34: AKROPOST SERVICIOS POSTALES | C34: A95265195 | D34: 69.71900826 | E34: 84.36 | F34: IMPORTE SERV. RECOGIDA CORRESPONDENCIA AULA CULTURA. -FRA. 180517 PROPUESTA PAGOS Nº33/18
A35: ADO3 | B35: AKROPOST SERVICIOS POSTALES | C35: A95265195 | D35: 73.04132231 | E35: 88.38 | F35: IMPORTE CORRESPONDENCIA CULTURA AGOSTO 18 F.180570 PROPUESTA PAGOS Nº37/18
A36: ADO3 | B36: AKROPOST SERVICIOS POSTALES | C36: A95265195 | D36: 254.9504132 | E36: 308.49 | F36: IMPORTE SERV DE MENSAJERIA MES JULIO.-FRA. 180551 PROPUESTA PAGOS Nº 35/18
A37: ADO3 | B37: AKROPOST SERVICIOS POSTALES | C37: A95265195 | D37: 286 | E37: 346.06 | F37: IMPORTE SERV DE MESNAJERIA REALIZADO DURANTE EL MES DE JUNIO.-FRA. 180506 PROPUESTA PAGOS Nº29/18
A38: 444 | B38: Alabazan S. Coop. Pequeña | C38: F95653010 | D38: 400 | E38: =D38 -> 400 | F38: premio a los cuentacuentos comunitarios | G38: 2018-06-26
A39: 209 | B39: Alabazan S. Coop. Pequeña | C39: F95653010 | D39: 1890 | E39: 2079 | F39: Haurrentzako ipuin kontalaria | G39: 2018-05-11
A40: 6 | B40: Alaiki Zerbitzu Gizakulturalak, S.L. | C40: B48910525 | D40: 1055 | E40: =D40*1.21 -> 1276.55 | F40: Txistularis, aurreskulari y trikitilaris Aberri Eguna | G40: 2018-03-14 | H40: 2018-03-14
A41: 22 | B41: Alaiki Zerbitzu Gizakulturalak, S.L. | C41: B48910525 | D41: 13636.36 | E41: =D41*1.21 -> 16499.9956 | F41: Parque Infantil de Navidad 2-5 enero | G41: 2018-03-20 | H41: 2018-01-05
A42: 573 | B42: Alara | C42: 30609922G | D42: 125 | E42: =D42*1.1 -> 137.5 | F42: Taller de maquillaje (Arimen gaua). Programación Aterpe Leioa Gaztegune | G42: 2018-09-07
A43: 65 | B43: Alara | C43: 30609922G | D43: 113.85 | E43: =D43*1.21 -> 137.7585 | F43: Taller de maquillaje, trucos, cuidados. 6 de abril. 19:00-20:30 | G43: 2018-03-27
A44: 389 | B44: ALBE GETXO | C44: G48725881 | D44: 2860 | E44: 2860 | F44: Fiestas San Juan / Bertso Saioa | G44: 2018-06-11
A45: 32 | B45: Aldamarsa, S.A. | C45: A41102492 | D45: 800 | E45: =D45*1.21 -> 968 | F45: Suministro caramelos Olentzero y Reyes Magos | G45: 2018-03-20 | H45: 2018-01-05
A46: 546 | B46: Alexander García-DIVERPARKE | C46: 45668654-S | D46: 1420 | E46: 1718.2 | F46: hinchables fiestas de Ondiz | G46: 2018-09-03
A47: 516 | B47: Alges Leioa S.L. | C47: B95917132 | D47: 1485.5 | E47: 1797.455 | F47: suministro y colocación barandilla san juan | G47: 2018-08-08
A48: 519 | B48: Alges Leioa S.L. | C48: B95917132 | D48: 1566.6 | E48: 1895.586 | F48: reparación barandilla monte ikea | G48: 2018-08-08
A49: 517 | B49: Alges Leioa S.L. | C49: B95917132 | D49: 3986.3 | E49: 4823.423 | F49: suministro y colocación barandilla ondiz | G49: 2018-08-08
A50: 73 | B50: Alges Leioa SL | C50: B95517132 | D50: 3250.4 | E50: 3932.984 | F50: Marquesinas ascensor monte Ikea | G50: 2018-04-13
A51: ADO3 | B51: ALGES LEIOA, S.L. | C51: B95517132 | D51: =E51/1.21 -> 108.8016529 | E51: 131.65 | F51: IMPORTE REPARACION BARANDILLA SKATE PARK. -FRA. 18170 PROPUESTA PAGOS Nº34/18
A52: ADO3 | B52: ALGES LEIOA, S.L. | C52: B95517132 | D52: =E52/1.21 -> 122.5041322 | E52: 148.23 | F52: IMPORTE SOLDADURA VISAGRAS CUADRO ELECTRICO Y AJUSTE PUERTA.TORE ONDIZ. -FRA. 18178 PROPUESTA PAGOS Nº34/18
A53: ADO3 | B53: ALGES LEIOA, S.L. | C53: B95517132 | D53: 136.5041322 | E53: 165.17 | F53: RECOLOCACION LAMAS CUARTO MAQUINAS. HAURRESKOLA PROPUESTA PAGOS Nº27/18
A54: ADO3 | B54: ALGES LEIOA, S.L. | C54: B95517132 | D54: 142.5041322 | E54: 172.43 | F54: DESMONTAJE PUERTA PARA QUITAR BISAGRAS. RECOLOCACION PUERTA.HAURRESKOLA PROPUESTA PAGOS Nº27/18
A55: ADO3 | B55: ALGES LEIOA, S.L. | C55: B95517132 | D55: 148.6033058 | E55: 179.81 | F55: SUMINISTRO PIVOTES HEB-100 GALVANIZADOS PROPUESTA PAGOS Nº29/18
A56: ADO3 | B56: ALGES LEIOA, S.L. | C56: B95517132 | D56: 160.1983471 | E56: 193.84 | F56: CONSERVATORIO MUSICA. CAMBIO MUELLE PUERTA ACCESO CPTXOMIN PROPUESTA PAGOS Nº28/18
A57: ADO3 | B57: ALGES LEIOA, S.L. | C57: B95517132 | D57: 161.5041322 | E57: 195.42 | F57: ONDIZKO ANDRA MARI. REPASO DE BARANDILLA PROPUESTA PAGOS Nº29/18
A58: ADO3 | B58: ALGES LEIOA, S.L. | C58: B95517132 | D58: 183.6033058 | E58: 222.16 | F58: REPARACION PASAMANOS PASARELA AVANZADA PROPUESTA PAGOS Nº29/18
A59: ADO3 | B59: ALGES LEIOA, S.L. | C59: B95517132 | D59: 192.5041322 | E59: 232.93 | F59: IMPORTE SUMINISTRO Y COLOCACION VIDRIO LAMINADO. INSTITUTO BARANDIARAN. -FRA. 18175 PROPUESTA PAGOS Nº34/18
A60: ADO3 | B60: ALGES LEIOA, S.L. | C60: B95517132 | D60: 210.1983471 | E60: 254.34 | F60: BARANDILLA DE ACERO INOXIDABLE REPARAR MATXURAN PROPUESTA PAGOS Nº29/18
A61: ADO3 | B61: ALGES LEIOA, S.L. | C61: B95517132 | D61: 280 | E61: 338.8 | F61: IMPORTE ARREGLO PUERTAS ENTRADA PRINCIPAL. KULTUR. -FRA. 18177 PROPUESTA PAGOS Nº34/18
A62: ADO3 | B62: ALGES LEIOA, S.L. | C62: B95517132 | D62: 324.8016529 | E62: 393.01 | F62: BARANDILLA JUNTO AL AYUNTAMIENTO REPARACION PROPUESTA PAGOS Nº29/18
A63: ADO3 | B63: ALGES LEIOA, S.L. | C63: B95517132 | D63: 351.5041322 | E63: 425.32 | F63: IMPORTE REPARACION BARANDILLA ACERO INOXIDABLE AMBULATORIO. -FRA. 18171 PROPUESTA PAGOS Nº32/18
A64: ADO3 | B64: ALGES LEIOA, S.L. | C64: B95517132 | D64: 378.7024793 | E64: 458.23 | F64: BARANDILLA JUNTO A TORRE DE IBERDROLA EN EL MIRADOR PROPUESTA PAGOS Nº29/18
A65: ADO3 | B65: ALGES LEIOA, S.L. | C65: B95517132 | D65: 386.5041322 | E65: 467.67 | F65: POLIDEPORTIVO. CHAPA VENTANA PARA ENTRADA AGUA PROPUESTA PAGOS Nº28/18
A66: ADO3 | B66: ALGES LEIOA, S.L. | C66: B95517132 | D66: 414.3966942 | E66: 501.42 | F66: IMPORTE ARREGLO CIERRE PUERTA DE GAS DE LA HAURRESKOLA.-FRA.18195 PROPUESTA PAGOS Nº38/18
A67: ADO3 | B67: ALGES LEIOA, S.L. | C67: B95517132 | D67: 434.1983471 | E67: 525.38 | F67: ALDAPABARRENA. COLOCACION PASAMANOS Y DEFENSAS PROPUESTA PAGOS Nº29/18
A68: ADO3 | B68: ALGES LEIOA, S.L. | C68: B95517132 | D68: =E68/1.21 -> 529.1983471 | E68: 640.33 | F68: IMPORTE SUMINISTRO Y COLOCACION SELECTOR MANUSA PUERTA CORREDERA AYUNTAMIENTO-FRA. 18176 PROPUESTA PAGOS Nº34/18
A69: ADO3 | B69: ALGES LEIOA, S.L. | C69: B95517132 | D69: 582.8016529 | E69: 705.19 | F69: IMPORTE REPARACION BARANDILLA ELEXALDE ETORBIDEA. -FRA. 18172 PROPUESTA PAGOS Nº32/18
A70: ADO3 | B70: ALGES LEIOA, S.L. | C70: B95517132 | D70: 712.1983471 | E70: 861.76 | F70: CASETA GATOS SER SOCIALES PROPUESTA PAGOS Nº28/18
A71: ADO3 | B71: ALGES LEIOA, S.L. | C71: B95517132 | D71: 868 | E71: 1050.28 | F71: IMPORTE REPARACION PERSIANAS COLEGIO SAN BARTOLOME. -FRA. 18168 PROPUESTA PAGOS Nº32/18
A72: ADO3 | B72: ALGES LEIOA, S.L. | C72: B95517132 | D72: 940.6033058 | E72: 1138.13 | F72: IMPORTE REPARACION BARANDILLA CURVA DEL MIRADOR. -FRA. 18167PROPUESTA PAGOS Nº32/18
A73: ADO3 | B73: ALGES LEIOA, S.L. | C73: B95517132 | D73: 986.6033058 | E73: 1193.79 | F73: IMPORTE SUMINISTRO Y COLOCACION DE CABLE TENSORES CANASTAS EN POLID KANDELAZUBIETA.-FRA. 18194 PP Nº 39/18
A74: ADO3 | B74: ALGES LEIOA, S.L. | C74: B95517132 | D74: 994 | E74: 1202.74 | F74: IMPORTE REPARACION BARANDILLA ONDIZKO ANDRA MARI. -FRA.18169PROPUESTA PAGOS Nº32/18
A75: 176 | B75: Alicia Guede Freire | C75: 30640482C | D75: 144.38 | E75: =D75*1.21 -> 174.6998 | F75: 2 cestas de Euskotzarak para enviar al jurado | G75: 2018-04-17
A76: 615 | B76: Alicia Guede Freire | C76: 30640482C | D76: 144.38 | E76: 174.71 | F76: 2 cestas de Euskotzarak para enviar al jurado | G76: 2018-09-21
A77: 24 | B77: Alicia Suárez | C77: B95038220 | D77: 365.08 | E77: =D77*1.21 -> 441.7468 | F77: Puesta a punto posticería y maquillaje Reyes Magos | G77: 2018-03-20 | H77: 2018-01-05
A78: 466 | B78: Allianz Seguros y Reaseguros SA | C78: A28007748 | D78: 95.84 | E78: =D78*1 -> 95.84 | F78: Udaleku Irekiak | G78: 2018-06-29
A79: 97 | B79: Alquiler y Suministros Lagor Eventos (Igor Aban San Nicolás) | C79: 30606301V | D79: 330.58 | E79: =D79*1.21 -> 400.0018 | F79: Alquiler de generadores y suministro de combustible (XIV San Bar Blues Festival) | G79: 2018-04-17
A80: 104 | B80: Amaia Eliazran Letamendia | C80: 72542656N | D80: 991.74 | E80: 1200 | F80: 2 representaciones del espectáculo “Pool” de la compañía Amaia Elizaran | G80: 2018-04-17
A81: 402 | B81: AMALUR S.L. | C81: B95630737 | D81: 780 | E81: 858 | F81: Fiestas San Juan / Actividades zona txosnas: espectáculo infantil “Roklaunrola” de Begira Teatro | G81: 2018-06-11
A82: 28 | B82: Amets Berria | C82: G48302582 | D82: 150 | E82: =D82*1.21 -> 181.5 | F82: Colaboración en Olentzero | G82: 2018-03-20 | H82: 2018-01-05
A83: 92 | B83: Amianto y Gestión S.L.U. | C83: B95630679 | D83: 1640 | E83: =D83*1.21 -> 1984.4 | F83: Encapsulado y gestión completa de residuos de fibrocemento en 3 puntos de vía publica | G83: 2018-04-17 | H83: 2018-04-30
A84: 93 | B84: Amianto y Gestión S.L.U. | C84: B95630679 | D84: 1900 | E84: =D84*1.21 -> 2299 | F84: Retirada y Gestión completa de 1 Deposito de fibrocemento en el Probaleku | G84: 2018-04-17 | H84: 2018-04-30
A85: 566 | B85: Ander Fdez. Beaskoetxea-Asociación cultural Txalaparta Flamenca | C85: G95587911 | D85: 1340 | E85: =D85 -> 1340 | F85: Taller de txalaparta y percusión. Programación Aterpe Leioa Gaztegune | G85: 2018-09-07
A86: ADO3 | B86: ANDOIN FERNANDEZ ALVARO | C86: 16050277A | D86: =E86/1.21 -> 71.3553719 | E86: 86.34 | F86: TALLER CREACION VIDEO CON MOVILES 14 JUNIO 2018 BEHARGINTZA PROPUESTA PAGOS Nº27/18
A87: 66 | B87: Andoni Izquierdo Gonzalez (Kero) | C87: 45671784V | D87: 470 | E87: =D87*1.21 -> 568.7 | F87: Customización de gorras. 25 de mayo. 18.30-20:30 | G87: 2018-03-27
A88: 574 | B88: Andoni Izquierdo Gonzalez (Kero) | C88: 45671784V | D88: 470 | E88: =D88*1.21 -> 568.7 | F88: Customización de gorras. 28 de septiembre 18.30-20:30. Programación Aterpe Leioa Gaztegune | G88: 2018-09-07
A89: 249 | B89: Ane Zugazagoitia Modino | C89: 45677251X | D89: 165.29 | E89: =D89*1.21 -> 200.0009 | F89: Pegada de carteles Umore Azoka | G89: 2018-05-11
A90: 87 | B90: Antonio Pastor Matos | C90: 12315228S | D90: 560 | E90: 616 | F90: Transporte del programa "Educación y Valores a través del Cine y Teatro" durante el mes de abril | G90: 2018-04-16
A91: 89 | B91: Antonio Pastor Matos | C91: 12317228S | D91: 8100 | E91: 8910 | F91: Recorrido de autobús por los barrios de Leioa, incluyendo monitor - Campaña UDA2018 | G91: 2018-04-17 | H91: 2018-07-31
A92: 333 | B92: Aon y Carvajal S.A. | C92: A28109247 | D92: 1352.18 | E92: 1352.18 | F92: Póliza de seguro para la campaña UDA 2018 | G92: 2018-06-05 | H92: 2018-07-27
A93: 432 | B93: Aosciación Claretiana Sortarazi | C93: G48852578 | D93: 1500 | E93: 1500 | F93: Asesoria tecnica Recuento Personas sin Hogar - 2018 | G93: 2018-06-19
A94: ADO3 | B94: APPLUS NORCONTROL,S.L.U. | C94: B15044357 | D94: =E94 -> 362.52 | E94: 362.52 | F94: IMPORTE INSPECCION ASCENSOR CP TXOMIN AGOSTO 18 F.04 18037016 PROPUESTA PAGOS Nº36/18
A95: 172 | B95: AQUAN SERVIREINER SL | C95: B48785810 | D95: 1588.98 | E95: =D95*1.21 -> 1922.6658 | F95: Suministro a tramitar a través de compras | G95: 2018-04-19 | H95: 2018-12-31
A96: 346 | B96: Argimiro Urones Martín | C96: 11716192S | D96: 495 | E96: 550 | F96: Catering grupos finalistas (350 €) y cena jurados (200 €) | G96: 2018-06-07
A97: 351 | B97: Aritz García Lopez | C97: 16059911T | D97: 302.5 | E97: 362.5 | F97: Presentador finales | G97: 2018-06-07
A98: 395 | B98: ARRAN - Luis Javier Fondon | C98: 20175136L | D98: 450 | E98: 495 | F98: Fiestas San Juan / Hinchables Barrio San Juan | G98: 2018-06-11
A99: ADO3 | B99: ARTEAGOITIA AGUIRRE GARAZI | C99: 16080665P | D99: =E99/1.21 -> 75.39669421 | E99: 91.23 | F99: IMPORTE SERV TRADUCCION BEHARGINTZA. -FRA. GA2018003 PROPUESTA PAGOS Nº32/18
A100: ADO3 | B100: ARTEAGOITIA AGUIRRE GARAZI | C100: 16080665P | D100: =E100/1.21 -> 212.8760331 | E100: 257.58 | F100: IMPORTE TRADUCCION ESCRITOS PARA BEHARGINTZA F.GA2018004 PROPUESTA PAGOS Nº39/18
A101: 268 | B101: Artekale | C101: G95449070 | D101: 826.45 | E101: =D101*1.21 -> 1000.0045 | F101: Dinamización de actividades del espacio profesional Umore Azoka | G101: 2018-05-11
A102: 422 | B102: ARTEZ | C102: F95015897 | D102: 343.41 | E102: =D102*1.21 -> 415.5261 | F102: Traducción Reglamento Piso Exclusión | G102: 2018-06-13
A103: 181 | B103: ARTEZ | C103: F95015897 | D103: 569.61 | E103: =D103*1.21 -> 689.2281 | F103: Traducción Reglamento pisos | G103: 2018-04-20
A104: ADO3 | B104: ARTEZ EUSKARA ZERBITZUA,KOOP. | C104: F95015897 | D104: =E104/1.21 -> 125 | E104: 151.25 | F104: IMPORTE TRADUCCION DIFERENTES DEPARTAMENTOS. -FRA. 18000319 PROPUESTA PAGOS Nº32/18
A105: ADO3 | B105: ARTEZ EUSKARA ZERBITZUA,KOOP. | C105: F95015897 | D105: =E105/1.21 -> 150 | E105: 181.5 | F105: ITZULPENAK (ANUNCIO SUPLENTES MESA CONTR., DECRETO MENOR 31/05 DECRE. MENOR 7/06 COMPRAS Y HACIENDA PROP PAGOS Nº28/18
A106: ADO3 | B106: ARTEZ EUSKARA ZERBITZUA,KOOP. | C106: F95015897 | D106: 164.8429752 | E106: 199.46 | F106: IMPORTE SEV DE TRADUCCIONES PARA PERSONAL, COMPRAS Y DEPORTES.-FRA. 18000358 PROPUESTA PAGOS Nº38/18
A107: 142 | B107: Artezblai S.L. | C107: B95380168 | D107: 1200 | E107: =D107*1.21 -> 1452 | F107: Inserción publicitaria (contraportada en la revista Artez y banner en portal Artezblai) | G107: 2018-04-17
A108: 621 | B108: Arturo Acosta Martinez | C108: 13304154B | D108: -2702.48 | E108: =D108*1.21 -> -3270.0008 | F108: Consultoría energética | G108: 2018-09-24
A109: 48 | B109: Arturo Acosta Martinez | C109: 13304154B | D109: 7272.73 | E109: =D109*1.21 -> 8800.0033 | F109: Auditoría energénica en relación la Tasa Uso Suelo | G109: 2018-03-26 | H109: 2018-07-06
A110: 9 | B110: Asesores de Organización y Sistemas de Informática S.L.L. | C110: B95792784 | D110: 1003.02 | E110: =D110*1.21 -> 1213.6542 | F110: Migración de Bases de Datos | G110: 2018-03-19 | H110: 2018-04-15
A111: 355 | B111: Asier Bilbao Aurrekoetxea | C111: 14612076S | D111: 250 | E111: 250 | F111: Dieta jurado | G111: 2018-06-07
A112: 256 | B112: Askartza Claret –Atalaia y Kiroldegia | C112: R4800466G | D112: 2000 | E112: 2200 | F112: Alojamientos de compañías Umore Azoka | G112: 2018-05-11
A113: 352 | B113: Asociación Ai Laket! - Euskadi | C113: G01334119 | D113: 2500 | E113: 2500 | F113: Programa testing | G113: 2018-06-07
A114: 23 | B114: Asociación Cultural de Bomberos de Bizkaia-ACUBOM | C114: G95315057 | D114: 600 | E114: =D114*1.21 -> 726 | F114: Demostración en PIN | G114: 2018-03-20 | H114: 2018-01-05
A115: 606 | B115: Asociación cultural deportiva PKB | C115: G95820924 | D115: 330.58 | E115: =D115*1.21 -> 400.0018 | F115: Semana de la movilidad en Leioa, taller de parkour | G115: 2018-09-20
A116: 121 | B116: Asociación Cultural hip hop freestyle | C116: G01320928 | D116: 991.74 | E116: 1200 | F116: 2 representaciones del espectáculo “Ozkol” de la compañía Proyecto Larrua | G116: 2018-04-17
A117: 130 | B117: Asociación Cultural Los Moñekos | C117: G66575762 | D117: 2852.53 | E117: =D117*1.21 -> 3451.5613 | F117: 2 representaciones del espectáculo “We-ding!” de la compañía Los Moñekos | G117: 2018-04-17
A118: 56 | B118: Asociación Cultural Txalaparta Flamenca | C118: G95587911 | D118: 250 | E118: =D118*1.21 -> 302.5 | F118: Taller 24 mayo 19:00-21:00 | G118: 2018-03-27
A119: 55 | B119: Asociación Cultural Txalaparta Flamenca | C119: G95587911 | D119: 900 | E119: =D119*1.21 -> 1089 | F119: Taller de percusión (los lunes del 24 de abril al 18 de junio, 18:30-20:30) | G119: 2018-03-27
A120: 96 | B120: Asociación Cultural y Deportiva Dibertiak | C120: G95479333 | D120: 1159 | E120: 1159 | F120: Dinamización con Actividades Fitness en el hogar de jubilados de Pinueta, durante el mes de julio de 2018 | G120: 2018-04-17 | H120: 2018-07-31
A121: 122 | B121: Asociación de malabaristas y artistas de circo Zirkozaurre | C121: G95682050 | D121: 1652.9 | E121: 2000 | F121: 2 representaciones del espectáculo “Aukerak” de la compañía The Funes Troup | G121: 2018-04-17
A122: 405 | B122: Asociación Junior Empresa Innsoul | C122: G95859690 | D122: 665.45 | E122: =D122*1.21 -> 805.1945 | F122: Fiestas San Juan / Actividades zona txosnas | G122: 2018-06-11
A123: 404 | B123: Asociación Junior Empresa Newen | C123: G95821088 | D123: 535.54 | E123: =D123*1.21 -> 648.0034 | F123: Fiestas San Juan / Actividades zona txosnas | G123: 2018-06-11
A124: 361 | B124: Asociación musical RTF | C124: G95806022 | D124: 200 | E124: 200 | F124: Dieta para traslados | G124: 2018-06-07
A125: 605 | B125: Asociación txokobide | C125: G95871315 | D125: 400 | E125: =D125*1.21 -> 484 | F125: Semana de la movilidad en Leioa, taller de empatía | G125: 2018-09-20
A126: 141 | B126: Asociación Zirkolika | C126: G66086661 | D126: 450 | E126: =D126*1.21 -> 544.5 | F126: Inserción publicitaria de media página en la revista Zirkolika | G126: 2018-04-17
A127: 133 | B127: Associació Cultural Rotativa | C127: G66361536 | D127: 1700 | E127: =D127*1.21 -> 2057 | F127: 2 representaciones del espectáculo “Agua” de la compañía Chey Jurado | G127: 2018-04-17
A128: 110 | B128: Association Elirale Dantza Konpainia | C128: SIRET 439 035 030 00031 | D128: 1800 | E128: 1800 | F128: 2 representaciones del espectáculo “Bihotz2” de la compañía Elirale | G128: 2018-04-17
A129: 576 | B129: ATC Sistemas de Control | C129: B95213468 | D129: 2000 | E129: =D129*1.21 -> 2420 | F129: Compra de tarjetas Mifare para IDM Leioa | G129: 2018-09-11
A130: ADO3 | B130: ATXERRE S.L. | C130: B95574984 | D130: =E130/1.21 -> 272.6280992 | E130: 329.88 | F130: CASCO VERTEX BEST HI. AURICULAR SCOTT. ARNES JARDINERIA PROPUESTA PAGOS Nº27/18
A131: 628 | B131: Autobuses Navarro | C131: 30654494R | D131: 950 | E131: =D131*1.1 -> 1045 | F131: Servicio de autobús para IV Feria de plantad los cinco continentes | G131: 2018-09-27 | H131: 2018-10-07
A132: 463 | B132: Autocares Pastor | C132: B48909519 | D132: 670 | E132: =D132*1.1 -> 737 | F132: Udaleku Irekiak | G132: 2018-06-29
A133: 215 | B133: Autocares Pastor | C133: B48909519 | D133: 1455 | E133: 1601 | F133: Garraioa | G133: 2018-05-11
A134: 90 | B134: Autocares Pastor | C134: B48909519 | D134: 12840 | E134: 14124 | F134: Viajes en autobús a actividades incluidas en la campaña UDA 2018 | G134: 2018-04-17 | H134: 2018-07-31
A135: ADO3 | B135: AUTOS AMABE S.A. | C135: A48128870 | D135: =E135/1.21 -> 213.6198347 | E135: 258.48 | F135: IMPORTE REPARACION DEL VEHICULO 1589JBN DE POLICIA.-FRA. 2.018/506.221 PROPUESTA PAGOS Nº39/18
A136: ADO3 | B136: AUTOS AMABE S.A. | C136: A48128870 | D136: =E136/1.21 -> 418.1900826 | E136: 506.01 | F136: IMPORTE REVISION VEHICULO POLICIA.- FRA. 2.018/506.214 PROPUESTA PAGOS Nº38/18
A137: 336 | B137: AVENTO CONSULTORIA SL | C137: B20851424 | D137: 300 | E137: =D137*1.21 -> 363 | F137: Ponencia Jornada Mujer, Salud y Deporte | G137: 2018-06-05 | H137: 2018-06-07
A138: ADO3 | B138: AYTASA - ABOGADOS Y TECNICOS ASOCIADOS, S.L. | C138: B48268221 | D138: =E138/1.21 -> 280 | E138: 338.8 | F138: IMPORTE Informe de valoración de los nichos CEMENTERIO F.089/18 PROPUESTA PAGOS 29/18
A139: ADO3 | B139: AYTASA - ABOGADOS Y TECNICOS ASOCIADOS, S.L. | C139: B48268221 | D139: =E139/1.21 -> 300 | E139: 363 | F139: IMPORTE INFORMES VALORACION NICHOS Nº50, Nº10 Y Nº51 CEMENTERIO. -FRA. 107/18 PROPUESTA PAGOS Nº34/18
A140: 190 | B140: Aytasa Abogados y técnicos asociados, SL | C140: B48268221 | D140: 4886 | E140: =D140*1.21 -> 5912.06 | F140: Comprobacion cumplimiento requisitos solicitantes sorteo 15 VPO-4 VTM Area 42-B telleria vacante | G140: 2018-04-30
A141: 599 | B141: B10 sistemas | C141: 30558815A | D141: 3870.16 | E141: =D141*1.21 -> 4682.8936 | F141: Semana de la movilidad en Leioa, camisetas | G141: 2018-09-20
A142: 436 | B142: B10 Sistemas (Iñaki Davalillo Peña) | C142: 30558815A | D142: 964 | E142: =D142*1.21 -> 1166.44 | F142: gorros de identificación niñas/niños Udatxiki | G142: 2018-06-20
A143: 194 | B143: B48546048 | C143: 22718010J | D143: 115.75 | E143: =D143*1.21 -> 140.0575 | F143: Dorsales Astorki | G143: 2018-05-02 | H143: 2018-05-05
A144: 401 | B144: BAGA-BIGA | C144: B95431896 | D144: 10600 | E144: =D144*1.21 -> 12826 | F144: Fiestas San Juan / Actividades zona txosnas | G144: 2018-06-11
A145: ADO3 | B145: BAKUN ITZULPEN ETA ARGITALPEN ZERBITZUAK S.L. | C145: B20628285 | D145: =E145/1.21 -> 62.47933884 | E145: 75.6 | F145: IMPORET TRADUCCION ARTICULOS BEHARGINTZA F.V/2018494 PROPUESTA PAGOS Nº39/18
A146: ADO3 | B146: BAKUN ITZULPEN ETA ARGITALPEN ZERBITZUAK S.L. | C146: B20628285 | D146: =E146/1.21 -> 146.5785124 | E146: 177.36 | F146: IMPORTE TRADUCCION DE KULTUR AGENDA.-FRA. V/2018436 PROPUESTA PAGOS Nº35/18
A147: 469 | B147: BAR JOKIN | C147: 16064282R | D147: 276.5 | E147: =D147*1.21 -> 334.565 | F147: Luch "OPORRAK BAKEAN" | G147: 2018-07-03
A148: ADO3 | B148: BARATZE TROBIKA, S.L. | C148: B95541587 | D148: =E148/1.21 -> 158.7024793 | E148: 192.03 | F148: SUMINISTRO CAJA CONEXION 4 EST PARA JARDINERIA. -FRA. 20185326 PROPUESTA PAGOS Nº37/18
A149: ADO3 | B149: BARATZE TROBIKA, S.L. | C149: B95541587 | D149: =E149/1.21 -> 585.2396694 | E149: 708.14 | F149: SUMINISTRO PROGRAMADOR Y CAJA CONEXION. -FRA. 20184936 PROPUESTA PAGOS Nº34/18
A150: 423 | B150: Baratze Trobika, S.L. | C150: B95541587 | D150: 872.6 | E150: =D150*1.21 -> 1055.846 | F150: Reparación urgenge de fregadora BR 45-40 de Torresolo | G150: 2018-07-06
A151: 105 | B151: Belén Álvarez, Distribución y Gestión de Espectáculos. S.L.U. | C151: B31832892 | D151: 1200 | E151: =D151*1.21 -> 1452 | F151: 2 representaciones del espectáculo “Amico on the beach” de la compañía Amico Teatro | G151: 2018-04-17
A152: 551 | B152: Beñat Vidal | C152: 16085044V | D152: 75 | E152: 75 | F152: Presentador concurso Bakalao | G152: 2018-09-03
A153: 616 | B153: BFLAT EVENTS S.L. | C153: B95895520 | D153: 12370 | E153: =D153*1.21 -> 14967.7 | F153: Euskaraldia Leioan actividad Kuboa | G153: 2018-09-21
A154: 204 | B154: BIHAR | C154: 20186063K | D154: 1818.18 | E154: 2000 | F154: 4 Representaciones de la Obra LAGUNEKIN BARATZEAN | G154: 2018-05-08
A155: 245 | B155: Bilbao Editorial Producciones. S.L.U. | C155: B48413504 | D155: 3377 | E155: =D155*1.21 -> 4086.17 | F155: Impresión de 20.000 revistas y 10.000 programas de mano Umore Azoka | G155: 2018-05-11
A156: 137 | B156: Bilbobasso | C156: SIRET 490 351 855 00021 / IVA Intracom: FR40 490351855 | D156: 5000 | E156: 5000 | F156: 3 representaciones del espectáculo “Amor” de la compañía Cie. Bilbobasso | G156: 2018-04-17
A157: 496 | B157: Bilbulec SL | C157: B95126090 | D157: 1850 | E157: =D157*1.21 -> 2238.5 | F157: Instalacion de final de carrera en eje cortina en Polideportivo Sakoneta | G157: 2018-08-01
A158: 591 | B158: Bilbulec SL | C158: B95126090 | D158: 1850 | E158: 2238.5 | F158: Reparación del motor de una de las cortinas mecánicas situadas en la cancha del polideportivo Sakoneta | G158: 2018-09-18
A159: 31 | B159: Biltoki Gazte Elkartea | C159: G48280580 | D159: 150 | E159: 181.5 | F159: Colaboración en Reyes Magos | G159: 2018-03-20 | H159: 2018-01-05
A160: 255 | B160: Bimade S.A. | C160: A48144075 | D160: 1296 | E160: 1568.16 | F160: Moquetas para los espacios escénicos Umore Azoka | G160: 2018-05-11
A161: 565 | B161: BIOK Comunicación Estratégica | C161: B957546696 | D161: 12600 | E161: 15246 | F161: Servicios de comunicación municipal | G161: 2018-09-06
A162: 414 | B162: BITXIAK | C162: B48444202 | D162: 540 | E162: 653.4 | F162: Fiestas San Juan / Ikurriñas | G162: 2018-06-11
A163: 386 | B163: BIZKAIKO GAITEROAK | C163: G48821995 | D163: 800 | E163: 800 | F163: Fiestas San Juan / Pasacalles dulzaineros | G163: 2018-06-11
A164: ADO3 | B164: BIZKAITRACTOR S.L. | C164: B95919213 | D164: =E164/1.21 -> 52.60330579 | E164: 63.65 | F164: IMPORTE MATERIAL PARA JARDINERIA. -FRA. 18/00015 PROPUESTA PAGOS Nº38/18
A165: ADO3 | B165: BLANCO BARTOLOME IÑIGO | C165: 16045102A | D165: =E165/1.21 -> 165.2727273 | E165: 199.98 | F165: SUMINISTRO ARREGLO FLOR NATURAL.-FRA. 180.888 PROPUESTA PAGOS Nº28/18
A166: ADO3 | B166: BLANCO BARTOLOME IÑIGO | C166: 16045102A | D166: 165.2727273 | E166: 199.98 | F166: SUMINISTRO AREGLO FLOR NATURAL.-FRA. 181.138 PROPUESTA PAGOS Nº38/18
A167: 396 | B167: Borja Fernandez - ERLOJUDENDA | C167: 14608861C | D167: 1991.74 | E167: =D167*1.21 -> 2410.0054 | F167: Fiestas San Juan / Trofeos pruebas cuadrillas (estimación) | G167: 2018-06-11
A168: 548 | B168: Borja Fernández (Erlojudenda) | C168: 14608861C | D168: 495.87 | E168: =D168*1.21 -> 600.0027 | F168: Trofeos Concurso Bakalao-Ondiz | G168: 2018-09-03
A169: 349 | B169: Borja Fernández Unibaso | C169: 14608861J | D169: 16.53 | E169: =D169*1.21 -> 20.0013 | F169: Detalle grupos | G169: 2018-06-07
A170: ADO3 | B170: BOXFIT GYM, S.L. | C170: B95896080 | D170: =E170/1.21 -> 60 | E170: 72.6 | F170: ALQUILER DE ESPACIO GIMNASIO BEHARGINTZA PROPUESTA PAGOS Nº27/18
A171: 128 | B171: Brothers projections SL | C171: B62138144 | D171: 2066.12 | E171: 2500 | F171: 2 representaciones del espectáculo “Mira ´T” de la compañía Circ Panic | G171: 2018-04-17
A172: 136 | B172: Brothers projections SL | C172: B62138144 | D172: 2066.12 | E172: 2500 | F172: 2 representaciones del espectáculo “Ovvio” de la compañía Kolektiv Lapso Cirk | G172: 2018-04-17
A173: 135 | B173: Brunette Bross. | C173: DK35150862 | D173: 3500 | E173: 3500 | F173: 6 representaciones del espectáculo “Brunette Circus” de la compañía Brunette Bros. | G173: 2018-04-17
A174: 91 | B174: BZ2 Alava S.L. | C174: B01305093 | D174: 1888.26 | E174: =D174*1.21 -> 2284.7946 | F174: Nuevo mobiliario SAC Gaztelubide | G174: 2018-04-17 | H174: 2018-03-10
A175: 155 | B175: BZ2 ALAVA SL. | C175: B01305093 | D175: 12854.66 | E175: =D175*1.21 -> 15554.1386 | F175: Suministro a tramitar a través de compras | G175: 2018-04-19 | H175: 2018-12-31
A176: 171 | B176: CAFÉ BAQUE SL | C176: B95445508 | D176: 1417.63 | E176: =D176*1.21 -> 1715.3323 | F176: Suministro a tramitar a través de compras | G176: 2018-04-19 | H176: 2018-12-31
A177: 330 | B177: Cafetería Alexander's | C177: 14603872E | D177: 427.27 | E177: =D177*1.1 -> 469.997 | F177: Partidos de Balonmano 23/06/2018 | G177: 2018-06-04 | H177: 2018-06-23
A178: 408 | B178: CAFETERIA TXORI HERRI LEIOA S.L. | C178: B95843066 | D178: 395.45 | E178: 435 | F178: Fiestas San Juan / Lunch Campeonato Jotas | G178: 2018-06-11
A179: 521 | B179: Campezo Obras y Servicios S.A. | C179: A48119036 | D179: 34327.32 | E179: =D179*1.21 -> 41536.0572 | F179: construccióm badenes vías laterales y basañese | G179: 2018-08-08
A180: 462 | B180: Campo Activo MAF SL | C180: B26533471 | D180: 582.64 | E180: =D180*1.21 -> 704.9944 | F180: Udaleku Irekiak | G180: 2018-06-29
A181: 202 | B181: CANON ESPAÑA | C181: A28122125 | D181: 360 | E181: =D181*1.21 -> 435.6 | F181: Reparación plotter Oficina Técnica | G181: 2018-05-23
A182: 275 | B182: Capricho de Baco Laguardia S.L | C182: B01543933 | D182: 600 | E182: =D182*1.21 -> 726 | F182: Jurado profesional concurso "Leioa zaporetan" | G182: 2018-04-16
A183: 47 | B183: Carmen Burguete Llorens | C183: 52727684T | D183: 270 | E183: 270 | F183: Acción formativa | G183: 2018-03-26 | H183: 2018-04-26
A184: 476 | B184: Carmen Burguete Llorens | C184: 52727684T | D184: 270 | E184: 270 | F184: Acción formativa | G184: 2018-07-09
A185: ADO3 | B185: CARPINTERIA METALICA ANFER,S.L. | C185: B95340428 | D185: =E185/1.21 -> 50.80165289 | E185: 61.47 | F185: IMPORTE REPARACION DEL REMOLQUE DE JARDINERIA.-FRA. 138/17 PROPUESTA PAGOS Nº38/18
A186: ADO3 | B186: CARPINTERIA METALICA ANFER,S.L. | C186: B95340428 | D186: =E186/1.21 -> 51.09917355 | E186: 61.83 | F186: IMPORTE REPARACION DE MAQUINA CORTA HIERBA DE JARDINERIA.-FRA. 139/17 PROPUESTA PAGOS Nº38/18
A187: ADO3 | B187: CARPINTERIA METALICA ANFER,S.L. | C187: B95340428 | D187: 52.29752066 | E187: 63.28 | F187: IMPORTE REPARACION DE AMQUINA CORTACESPED DE JARDINERIA.-FRA. 137/17 PROPUESTA PAGOS Nº38/18
A188: ADO3 | B188: CARROCERIAS SANCHO,S.L. | C188: B48214118 | D188: 46.70247934 | E188: 56.51 | F188: MATRICULA 1463BDY. DAILY 35S. PIEZAS Y ACCESORIOS. PILOTO DERECHO PROPUESTA PAGOS Nº28/18
A189: 526 | B189: CARWAGEN 4X4 SL | C189: B48820690 | D189: 1198.32 | E189: =D189*1.21 -> 1449.9672 | F189: Reparación Vehículo jardineria matricula 9326FJG | G189: 2018-08-21
A190: ADO3 | B190: CEDRO | C190: V78652203 | D190: =E190 -> 303.98 | E190: 303.98 | F190: IMPORTE REMUNERACION POR PRESTAMO PUBLICO BIBLIOTECARIO 2017.-FRA. 1700000119 PROPUESTA PAGOS Nº 30/18
A191: 467 | B191: Cedyc S. Coop. | C191: F95284873 | D191: 14659.16 | E191: =D191*1.21 -> 17737.5836 | F191: Suministro 14 antenas wifi y software de gestion | G191: 2018-06-29
A192: 568 | B192: Centro de Emergencias, Salvamento y Socorrismo S.L. | C192: B95811477 | D192: 1750 | E192: =D192 -> 1750 | F192: Primeros auxilios+DESA. Programación Aterpe Leioa Gaztegune | G192: 2018-09-07
A193: 58 | B193: Centro de Emergencias, Salvamento y Socorrismo S.L. | C193: B95811477 | D193: 1750 | E193: =D193*1.21 -> 2117.5 | F193: Curso de primeros auxilios + DESA (los jueves del 24 de abril al 19 de junio, 16:30-20:30) | G193: 2018-03-27
A194: 510 | B194: Centro de Estudios Inatec, S.L | C194: B95060935 | D194: 4000 | E194: 4000 | F194: Accion formativa "Inglés B1. First preparation exam" | G194: 2018-08-07
A195: 569 | B195: Centro Informática profesional, S.L.-CIPSA | C195: B08954505 | D195: 1300 | E195: =D195 -> 1300 | F195: Creación de apps a través del movil. Programación Aterpe Leioa Gaztegune | G195: 2018-09-07
A196: 342 | B196: Centro Veterinario Uribe Kosta | C196: 11921946B | D196: 1377.02 | E196: 1576.2 | F196: Atención veterinaria animal atropellado | G196: 2018-06-06
A197: 165 | B197: CEPRENOR | C197: A48210553 | D197: 4646.03 | E197: =D197*1.21 -> 5621.6963 | F197: Suministro a tramitar a través de compras | G197: 2018-04-19 | H197: 2018-12-31
A198: 166 | B198: CERAJERIA AGUINAGAG | C198: B95144119 | D198: 1247.04 | E198: =D198*1.21 -> 1508.9184 | F198: Suministro a tramitar a través de compras | G198: 2018-04-19 | H198: 2018-12-31
A199: 134 | B199: Christian Eduardo Casanova Zúñiga | C199: Y0705584G | D199: 826.45 | E199: 1000 | F199: 2 representaciones del espectáculo “¡Fuera!” de la compañía Murmuyo | G199: 2018-04-17
A200: 272 | B200: CidFCA Comunicación | C200: B48747182 | D200: 3400 | E200: =D200*1.21 -> 4114 | F200: Diseño campaña comunicación y cartelería concurso "Leioa Zaporetan" | G200: 2018-04-16
... 643 more rows

Sheet Aux (hidden)
A1: OBRA | B1: 12 MESES | C1: 14563525H
A2: PRIVADO | B2: 11 MESES | C2: A28122125
A3: SERVICIO | B3: 10 MESES | C3: A48092985
A4: SUMINISTRO | B4: 9 MESES | C4: A48093926
B5: 8 MESES | C5: A48115000
B6: 7 MESES | C6: A48189526
B7: 6 MESES | C7: A48210553
B8: 5 MESES | C8: B01305093
B9: 4 MESES | C9: B01477322
B10: 3 MESES | C10: B48182174
B11: 2 MESES | C11: B48252472
B12: 1 MES | C12: B48253801
B13: PUNTUAL | C13: B48303671
C14: B48484166
C15: B48506612
C16: B48785810
C17: B48919708
C18: B48943013
C19: B71034557
C20: B84198134
C21: B95018628
C22: B95063517
C23: B95144119
C24: B95167060
C25: B95200812
C26: B95276515
C27: B95445508
C28: B95583340
C29: B95698619
C30: B95730255
